Workbook

Sheet Debt Snowball Calculator
N2: Instructions:
C3: Debt Snowball Calculator | I3: Extra Monthly Payment | J3: $300.00 | K3: (beyond minimum debt payments) | N3: 1) Fill in cells J3 and J4: the monthly amount you can put toward your debt and the
I4: One-Time Start-up Payment | J4: $100.00 | K4: (from cash you have in savings) | N4: one-time amount you can scrounge up to get things rolling.
N5: 2) Fill in your debts (starting in cell D13) from smallest to largest. Include the
C6: Provided by: LifeAndMyFinances.com | H6: Like the sheet? Need a bigger one with more inputs? We sell one on Etsy for just $3.99. Click here to check it out! | N6: minimum payments and interest rates.
C7: Copyright 2016 | N7: 3) Scroll down to see how quickly you could get out of debt!
C10: Smallest Debts | R10: Largest Debts
C12: Debt 1 | E12: Debt 2 | G12: Debt 3 | I12: Debt 4 | K12: Debt 5 | M12: Debt 6 | O12: Debt 7 | Q12: Debt 8
C13: Balance | D13: $1,500.00 | E13: Balance | F13: $2,000.00 | G13: Balance | H13: $2,500.00 | I13: Balance | J13: $2,800.00 | K13: Balance | L13: $3,400.00 | M13: Balance | N13: $5,000.00 | O13: Balance | P13: $7,500.00 | Q13: Balance | R13: 0
C14: Minimum Payment | D14: $30.00 | E14: Minimum Payment | F14: $30.00 | G14: Minimum Payment | H14: $75.00 | I14: Minimum Payment | J14: $41.00 | K14: Minimum Payment | L14: $45.00 | M14: Minimum Payment | N14: $233.00 | O14: Minimum Payment | P14: $50.00 | Q14: Minimum Payment | R14: 0
C15: Interest Rate | D15: 21.9% | E15: Interest Rate | F15: 22.7% | G15: Interest Rate | H15: 18.0% | I15: Interest Rate | J15: 20.0% | K15: Interest Rate | L15: 23.7% | M15: Interest Rate | N15: 9.6% | O15: Interest Rate | P15: 20.6% | Q15: Interest Rate | R15: 0.0%
B17: Month | C17: Payment | D17: Balance | E17: Payment | F17: Balance | G17: Payment | H17: Balance | I17: Payment | J17: Balance | K17: Payment | L17: Balance | M17: Payment | N17: Balance | O17: Payment | P17: Balance | Q17: Payment | R17: Balance
B18: 1 | C18: =IF((J4+J3)>=D13,D13,(J3+J4+D14)) -> $430.00 | D18: =IF(D13-C18<=0,0,(D13-C18)) -> $1,070.00 | E18: =IF((J3+J4)>=(D13+F13),F13,IF(AND(C18=D13,C18<>0),(J3+J4-D13+F14),F14)) -> $30.00 | F18: =IF(F13-E18<=0,0,(F13-E18)) -> $1,970.00 | G18: =IF((J3+J4)>=(F13+H13+D13),H13,IF(AND(E18=F13, E18<>0),(J3+J4-F13-D13+H14),H14)) -> $75.00 | H18: =IF(H13-G18<=0,0,(H13-G18)) -> $2,425.00 | I18: =IF((J3+J4)>=(H13+J13+F13+D13),J13,IF(AND(G18=H13, G18<>0),(J3+J4-H13-F13-D13+J14),J14)) -> $41.00 | J18: =IF(J13-I18<=0,0,(J13-I18)) -> $2,759.00 | K18: =IF((J3+J4)>=(J13+L13+H13+F13+D13),L13,IF(AND(I18=J13,I18<>0),(J3+J4-J13-H13-F13-D13+L14),L14)) -> $45.00 | L18: =IF(L13-K18<=0,0,(L13-K18)) -> $3,355.00 | M18: =IF((J3+J4)>=(L13+N13+J13+H13+F13+D13),N13,IF(AND(K18=L13,K18<>0),(J3+J4-L13-J13-H13-F13-D13+N14),N14)) -> $233.00 | N18: =IF(N13-M18<=0,0,(N13-M18)) -> $4,767.00 | O18: =IF(($J$3+$J$4)>=(N13+P13+L13+J13+H13+F13+D13),P13,IF(AND(M18=N$13,M18<>0),($J$3+$J$4-N13-L13-J13-H13-F13-D13+P14),P14)) -> $50.00 | P18: =IF(P13-O18<=0,0,(P13-O18)) -> $7,450.00 | Q18: =IF(($J$3+$J$4)>=(P13+R13+N13+L13+J13+H13+F13+D13),R13,IF(AND(O18=P$13,O18<>0),($J$3+$J$4-P13-N13-L13-J13-H13-F13-D13+R14),R14)) -> 0 | R18: =IF(R13-Q18<=0,0,(R13-Q18)) -> 0
B19: 2 | C19: =IF((D18-$J$3-$D$14)<=0,($J$3+(D18-$J$3)),($J$3+$D$14)) -> $330.00 | D19: =IF((D18-C19)<=0.0001,0,(D18-C19)*(1+(D$15/12))) -> $753.51 | E19: =IF(AND(((F18-$J$3+C19-F$14-D$14)<=0),D19=0),F18,IF(D19=0,$J$3-C19+F$14+D$14,F$14)) -> $30.00 | F19: =IF((F18-E19)<=0.0001,0,(F18-E19)*(1+(F$15/12))) -> $1,976.76 | G19: =IF(AND(((H18-$J$3+E19+C19-H$14-F$14-D$14)<=0),F19+D19=0),H18,IF(H$14>=H18,H18,IF(AND(F19=0,D19=0),$J$3-E19-C19+H$14+F$14+D$14,H$14))) -> $75.00 | H19: =IF((H18-G19)<=0.0001,0,(H18-G19)*(1+(H$15/12))) -> $2,385.25 | I19: =IF(AND(((J18-$J$3+G19+E19+C19-J$14-H$14-F$14-D$14)<=0),H19+F19+D19=0),J18,IF(J$14>=J18,J18, IF(AND(H19=0,F19=0,D19=0),$J$3-G19-E19-C19+J$14+H$14+F$14+D$14,J$14))) -> $41.00 | J19: =IF((J18-I19)<=0.0001,0,(J18-I19)*(1+(J$15/12))) -> $2,763.28 | K19: =IF(AND(((L18-$J$3+I19+G19+E19+C19-L$14-J$14-H$14-F$14-D$14)<=0),J19+H19+F19+D19=0),L18,IF(L$14>=L18,L18,IF(AND(J19=0,H19=0,F19=0,D19=0),$J$3-I19-G19-E19-C19+L$14+J$14+H$14+F$14+D$14,L$14))) -> $45.00 | L19: =IF((L18-K19)<=0.0001,0,(L18-K19)*(1+(L$15/12))) -> $3,375.23 | M19: =IF(AND(((N18-$J$3+K19+I19+G19+E19+C19-N$14-L$14-J$14-H$14-F$14-D$14)<=0),L19+J19+H19+F19+D19=0),N18,IF(N$14>=N18,N18,IF(AND(L19=0,J19=0,H19=0,F19=0),$J$3-K19-I19-G19-E19-C19+N$14+L$14+J$14+H$14+F$14+D$14,N$14))) -> $233.00 | N19: =IF((N18-M19)<=0.0001,0,(N18-M19)*(1+(N$15/12))) -> $4,570.08 | O19: =IF(AND(((P18-$J$3+M19+K19+I19+G19+E19+C19-P$14-N$14-L$14-J$14-H$14-F$14-D$14)<=0),N19+L19+J19+H19+F19+D19=0),P18,IF(P$14>=P18,P18,IF(AND(N19=0,L19=0,J19=0,H19=0,F19=0,D19=0),$J$3-M19-K19-I19-G19-E19-C19+P$14+N$14+L$14+J$14+H$14+F$14+D$14,P$14))) -> $50.00 | P19: =IF((P18-O19)<=0.0001,0,(P18-O19)*(1+(P$15/12))) -> $7,526.73 | Q19: =IF(AND(((R18-$J$3+O19+M19+K19+I19+G19+E19+C19-R$14-P$14-N$14-L$14-J$14-H$14-F$14-D$14)<=0),P19+N19+L19+J19+H19+F19+D19=0),R18,IF(R$14>=R18,R18,IF(AND(P19=0,N19=0,L19=0,J19=0,H19=0,F19=0,D19=0),$J$3-O19-M19-K19-I19-G19-E19-C19+R$14+P$14+N$14+L$14+J$14+H$14+F$14+D$14,R$14))) -> 0 | R19: =IF((R18-Q19)<=0.0001,0,(R18-Q19)*(1+(R$15/12))) -> 0
B20: 3 | C20: $330.00 | D20: =IF((D19-C20)<=0.0001,0,(D19-C20)*(1+(D$15/12))) -> $431.23 | E20: $30.00 | F20: $1,983.65 | G20: $75.00 | H20: =IF((H19-G20)<=0.0001,0,(H19-G20)*(1+(H$15/12))) -> $2,344.90 | I20: $41.00 | J20: =IF((J19-I20)<=0.0001,0,(J19-I20)*(1+(J$15/12))) -> $2,767.63 | K20: $45.00 | L20: =IF((L19-K20)<=0.0001,0,(L19-K20)*(1+(L$15/12))) -> $3,395.87 | M20: $233.00 | N20: =IF((N19-M20)<=0.0001,0,(N19-M20)*(1+(N$15/12))) -> $4,371.60 | O20: $50.00 | P20: =IF((P19-O20)<=0.0001,0,(P19-O20)*(1+(P$15/12))) -> $7,604.76 | Q20: 0 | R20: =IF((R19-Q20)<=0.0001,0,(R19-Q20)*(1+(R$15/12))) -> 0
B21: 4 | C21: $330.00 | D21: =IF((D20-C21)<=0.0001,0,(D20-C21)*(1+(D$15/12))) -> $103.08 | E21: $30.00 | F21: $1,990.68 | G21: $75.00 | H21: $2,303.95 | I21: $41.00 | J21: $2,772.05 | K21: $45.00 | L21: $3,416.91 | M21: $233.00 | N21: =IF((N20-M21)<=0.0001,0,(N20-M21)*(1+(N$15/12))) -> $4,171.54 | O21: $50.00 | P21: $7,684.14 | Q21: 0 | R21: 0
B22: 5 | C22: $103.08 | D22: =IF((D21-C22)<=0.0001,0,(D21-C22)*(1+(D$15/12))) -> 0 | E22: $256.92 | F22: $1,766.61 | G22: $75.00 | H22: $2,262.39 | I22: $41.00 | J22: $2,776.54 | K22: $45.00 | L22: $3,438.36 | M22: $233.00 | N22: $3,969.88 | O22: $50.00 | P22: $7,764.87 | Q22: 0 | R22: 0
B23: 6 | C23: 0 | D23: 0 | E23: $360.00 | F23: $1,433.27 | G23: $75.00 | H23: $2,220.20 | I23: $41.00 | J23: $2,781.11 | K23: $45.00 | L23: $3,460.24 | M23: $233.00 | N23: $3,766.62 | O23: $50.00 | P23: $7,846.99 | Q23: 0 | R23: 0
B24: 7 | C24: 0 | D24: 0 | E24: $360.00 | F24: $1,093.61 | G24: $75.00 | H24: $2,177.38 | I24: $41.00 | J24: $2,785.76 | K24: $45.00 | L24: $3,482.55 | M24: $233.00 | N24: $3,561.74 | O24: $50.00 | P24: $7,930.51 | Q24: 0 | R24: 0
B25: 8 | C25: 0 | D25: 0 | E25: $360.00 | F25: $747.51 | G25: $75.00 | H25: $2,133.91 | I25: $41.00 | J25: $2,790.48 | K25: $45.00 | L25: $3,505.30 | M25: $233.00 | N25: $3,355.23 | O25: $50.00 | P25: $8,015.47 | Q25: 0 | R25: 0
B26: 9 | C26: 0 | D26: 0 | E26: $360.00 | F26: $394.85 | G26: $75.00 | H26: $2,089.79 | I26: $41.00 | J26: $2,795.28 | K26: $45.00 | L26: $3,528.49 | M26: $233.00 | N26: $3,147.08 | O26: $50.00 | P26: $8,101.88 | Q26: 0 | R26: 0
B27: 10 | C27: 0 | D27: 0 | E27: $360.00 | F27: $35.51 | G27: $75.00 | H27: $2,045.02 | I27: $41.00 | J27: $2,800.16 | K27: $45.00 | L27: $3,552.15 | M27: $233.00 | N27: $2,937.27 | O27: $50.00 | P27: $8,189.77 | Q27: 0 | R27: 0
B28: 11 | C28: 0 | D28: 0 | E28: $35.51 | F28: 0 | G28: $399.49 | H28: $1,670.21 | I28: $41.00 | J28: $2,805.13 | K28: $45.00 | L28: $3,576.27 | M28: $233.00 | N28: $2,725.79 | O28: $50.00 | P28: $8,279.16 | Q28: 0 | R28: 0
B29: 12 | C29: 0 | D29: 0 | E29: 0 | F29: 0 | G29: $435.00 | H29: $1,253.74 | I29: $41.00 | J29: $2,810.17 | K29: $45.00 | L29: $3,600.86 | M29: $233.00 | N29: $2,512.63 | O29: $50.00 | P29: $8,370.08 | Q29: 0 | R29: 0
B30: 13 | C30: 0 | D30: 0 | E30: 0 | F30: 0 | G30: $435.00 | H30: $831.02 | I30: $41.00 | J30: $2,815.30 | K30: $45.00 | L30: $3,625.94 | M30: $233.00 | N30: $2,297.77 | O30: $50.00 | P30: $8,462.56 | Q30: 0 | R30: 0
B31: 14 | C31: 0 | D31: 0 | E31: 0 | F31: 0 | G31: $435.00 | H31: $401.96 | I31: $41.00 | J31: $2,820.52 | K31: $45.00 | L31: $3,651.52 | M31: $233.00 | N31: $2,081.20 | O31: $50.00 | P31: $8,556.63 | Q31: 0 | R31: 0
B32: 15 | C32: 0 | D32: 0 | E32: 0 | F32: 0 | G32: $401.96 | H32: 0 | I32: $74.04 | J32: $2,792.23 | K32: $45.00 | L32: $3,677.60 | M32: $233.00 | N32: $1,862.91 | O32: $50.00 | P32: $8,652.31 | Q32: 0 | R32: 0
B33: 16 | C33: 0 | D33: 0 | E33: 0 | F33: 0 | G33: 0 | H33: 0 | I33: $476.00 | J33: $2,354.81 | K33: $45.00 | L33: $3,704.19 | M33: $233.00 | N33: $1,642.89 | O33: $50.00 | P33: $8,749.62 | Q33: 0 | R33: 0
B34: 17 | C34: 0 | D34: 0 | E34: 0 | F34: 0 | G34: 0 | H34: 0 | I34: $476.00 | J34: $1,910.11 | K34: $45.00 | L34: $3,731.31 | M34: $233.00 | N34: $1,421.11 | O34: $50.00 | P34: $8,848.60 | Q34: 0 | R34: 0
B35: 18 | C35: 0 | D35: 0 | E35: 0 | F35: 0 | G35: 0 | H35: 0 | I35: $476.00 | J35: $1,458.00 | K35: $45.00 | L35: $3,758.96 | M35: $233.00 | N35: $1,197.56 | O35: $50.00 | P35: $8,949.28 | Q35: 0 | R35: 0
B36: 19 | C36: 0 | D36: 0 | E36: 0 | F36: 0 | G36: 0 | H36: 0 | I36: $476.00 | J36: $998.36 | K36: $45.00 | L36: $3,787.15 | M36: $233.00 | N36: $972.24 | O36: $50.00 | P36: $9,051.68 | Q36: 0 | R36: 0
B37: 20 | C37: 0 | D37: 0 | E37: 0 | F37: 0 | G37: 0 | H37: 0 | I37: $476.00 | J37: $531.06 | K37: $45.00 | L37: $3,815.90 | M37: $233.00 | N37: $745.12 | O37: $50.00 | P37: $9,155.83 | Q37: 0 | R37: 0
B38: 21 | C38: 0 | D38: 0 | E38: 0 | F38: 0 | G38: 0 | H38: 0 | I38: $476.00 | J38: $55.98 | K38: $45.00 | L38: $3,845.22 | M38: $233.00 | N38: $516.20 | O38: $50.00 | P38: $9,261.77 | Q38: 0 | R38: 0
B39: 22 | C39: 0 | D39: 0 | E39: 0 | F39: 0 | G39: 0 | H39: 0 | I39: $55.98 | J39: 0 | K39: $465.02 | L39: $3,446.82 | M39: $233.00 | N39: $285.45 | O39: $50.00 | P39: $9,369.52 | Q39: 0 | R39: 0
B40: 23 | C40: 0 | D40: 0 | E40: 0 | F40: 0 | G40: 0 | H40: 0 | I40: 0 | J40: 0 | K40: $521.00 | L40: $2,983.48 | M40: $233.00 | N40: $52.87 | O40: $50.00 | P40: $9,479.12 | Q40: 0 | R40: 0
B41: 24 | C41: 0 | D41: 0 | E41: 0 | F41: 0 | G41: 0 | H41: 0 | I41: 0 | J41: 0 | K41: $521.00 | L41: $2,511.01 | M41: $52.87 | N41: 0 | O41: $50.00 | P41: $9,590.59 | Q41: 0 | R41: 0
B42: 25 | C42: 0 | D42: 0 | E42: 0 | F42: 0 | G42: 0 | H42: 0 | I42: 0 | J42: 0 | K42: $521.00 | L42: $2,029.23 | M42: 0 | N42: 0 | O42: $50.00 | P42: $9,703.97 | Q42: 0 | R42: 0
B43: 26 | C43: 0 | D43: 0 | E43: 0 | F43: 0 | G43: 0 | H43: 0 | I43: 0 | J43: 0 | K43: $521.00 | L43: $1,537.96 | M43: 0 | N43: 0 | O43: $50.00 | P43: $9,819.30 | Q43: 0 | R43: 0
B44: 27 | C44: 0 | D44: 0 | E44: 0 | F44: 0 | G44: 0 | H44: 0 | I44: 0 | J44: 0 | K44: $521.00 | L44: $1,037.00 | M44: 0 | N44: 0 | O44: $50.00 | P44: $9,936.60 | Q44: 0 | R44: 0
B45: 28 | C45: 0 | D45: 0 | E45: 0 | F45: 0 | G45: 0 | H45: 0 | I45: 0 | J45: 0 | K45: $521.00 | L45: $526.17 | M45: 0 | N45: 0 | O45: $50.00 | P45: $10,055.90 | Q45: 0 | R45: 0
B46: 29 | C46: 0 | D46: 0 | E46: 0 | F46: 0 | G46: 0 | H46: 0 | I46: 0 | J46: 0 | K46: $521.00 | L46: $5.27 | M46: 0 | N46: 0 | O46: $50.00 | P46: $10,177.26 | Q46: 0 | R46: 0
B47: 30 | C47: 0 | D47: 0 | E47: 0 | F47: 0 | G47: 0 | H47: 0 | I47: 0 | J47: 0 | K47: $5.27 | L47: 0 | M47: 0 | N47: 0 | O47: $798.73 | P47: $9,539.14 | Q47: 0 | R47: 0
B48: 31 | C48: 0 | D48: 0 | E48: 0 | F48: 0 | G48: 0 | H48: 0 | I48: 0 | J48: 0 | K48: 0 | L48: 0 | M48: 0 | N48: 0 | O48: $804.00 | P48: $8,884.72 | Q48: 0 | R48: 0
B49: 32 | C49: 0 | D49: 0 | E49: 0 | F49: 0 | G49: 0 | H49: 0 | I49: 0 | J49: 0 | K49: 0 | L49: 0 | M49: 0 | N49: 0 | O49: $804.00 | P49: $8,219.11 | Q49: 0 | R49: 0
B50: 33 | C50: 0 | D50: 0 | E50: 0 | F50: 0 | G50: 0 | H50: 0 | I50: 0 | J50: 0 | K50: 0 | L50: 0 | M50: 0 | N50: 0 | O50: $804.00 | P50: $7,542.09 | Q50: 0 | R50: 0
B51: 34 | C51: 0 | D51: 0 | E51: 0 | F51: 0 | G51: 0 | H51: 0 | I51: 0 | J51: 0 | K51: 0 | L51: 0 | M51: 0 | N51: 0 | O51: $804.00 | P51: $6,853.48 | Q51: 0 | R51: 0
B52: 35 | C52: 0 | D52: 0 | E52: 0 | F52: 0 | G52: 0 | H52: 0 | I52: 0 | J52: 0 | K52: 0 | L52: 0 | M52: 0 | N52: 0 | O52: $804.00 | P52: $6,153.08 | Q52: 0 | R52: 0
B53: 36 | C53: 0 | D53: 0 | E53: 0 | F53: 0 | G53: 0 | H53: 0 | I53: 0 | J53: 0 | K53: 0 | L53: 0 | M53: 0 | N53: 0 | O53: $804.00 | P53: $5,440.68 | Q53: 0 | R53: 0
B54: 37 | C54: 0 | D54: 0 | E54: 0 | F54: 0 | G54: 0 | H54: 0 | I54: 0 | J54: 0 | K54: 0 | L54: 0 | M54: 0 | N54: 0 | O54: $804.00 | P54: $4,716.08 | Q54: 0 | R54: 0
B55: 38 | C55: 0 | D55: 0 | E55: 0 | F55: 0 | G55: 0 | H55: 0 | I55: 0 | J55: 0 | K55: 0 | L55: 0 | M55: 0 | N55: 0 | O55: $804.00 | P55: $3,979.08 | Q55: 0 | R55: 0
B56: 39 | C56: 0 | D56: 0 | E56: 0 | F56: 0 | G56: 0 | H56: 0 | I56: 0 | J56: 0 | K56: 0 | L56: 0 | M56: 0 | N56: 0 | O56: $804.00 | P56: $3,229.45 | Q56: 0 | R56: 0
B57: 40 | C57: 0 | D57: 0 | E57: 0 | F57: 0 | G57: 0 | H57: 0 | I57: 0 | J57: 0 | K57: 0 | L57: 0 | M57: 0 | N57: 0 | O57: $804.00 | P57: $2,466.99 | Q57: 0 | R57: 0
B58: 41 | C58: 0 | D58: 0 | E58: 0 | F58: 0 | G58: 0 | H58: 0 | I58: 0 | J58: 0 | K58: 0 | L58: 0 | M58: 0 | N58: 0 | O58: $804.00 | P58: $1,691.47 | Q58: 0 | R58: 0
B59: 42 | C59: 0 | D59: 0 | E59: 0 | F59: 0 | G59: 0 | H59: 0 | I59: 0 | J59: 0 | K59: 0 | L59: 0 | M59: 0 | N59: 0 | O59: $804.00 | P59: $902.66 | Q59: 0 | R59: 0
B60: 43 | C60: 0 | D60: 0 | E60: 0 | F60: 0 | G60: 0 | H60: 0 | I60: 0 | J60: 0 | K60: 0 | L60: 0 | M60: 0 | N60: 0 | O60: $804.00 | P60: $100.35 | Q60: 0 | R60: 0
B61: 44 | C61: 0 | D61: 0 | E61: 0 | F61: 0 | G61: 0 | H61: 0 | I61: 0 | J61: 0 | K61: 0 | L61: 0 | M61: 0 | N61: 0 | O61: $100.35 | P61: 0 | Q61: 0 | R61: 0
B62: 45 | C62: 0 | D62: 0 | E62: 0 | F62: 0 | G62: 0 | H62: 0 | I62: 0 | J62: 0 | K62: 0 | L62: 0 | M62: 0 | N62: 0 | O62: 0 | P62: 0 | Q62: 0 | R62: 0
B63: 46 | C63: 0 | D63: 0 | E63: 0 | F63: 0 | G63: 0 | H63: 0 | I63: 0 | J63: 0 | K63: 0 | L63: 0 | M63: 0 | N63: 0 | O63: 0 | P63: 0 | Q63: 0 | R63: 0
B64: 47 | C64: 0 | D64: 0 | E64: 0 | F64: 0 | G64: 0 | H64: 0 | I64: 0 | J64: 0 | K64: 0 | L64: 0 | M64: 0 | N64: 0 | O64: 0 | P64: 0 | Q64: 0 | R64: 0
B65: 48 | C65: 0 | D65: 0 | E65: 0 | F65: 0 | G65: 0 | H65: 0 | I65: 0 | J65: 0 | K65: 0 | L65: 0 | M65: 0 | N65: 0 | O65: 0 | P65: 0 | Q65: 0 | R65: 0
B66: 49 | C66: 0 | D66: 0 | E66: 0 | F66: 0 | G66: 0 | H66: 0 | I66: 0 | J66: 0 | K66: 0 | L66: 0 | M66: 0 | N66: 0 | O66: 0 | P66: 0 | Q66: 0 | R66: 0
B67: 50 | C67: 0 | D67: 0 | E67: 0 | F67: 0 | G67: 0 | H67: 0 | I67: 0 | J67: 0 | K67: 0 | L67: 0 | M67: 0 | N67: 0 | O67: 0 | P67: 0 | Q67: 0 | R67: 0
B68: 51 | C68: 0 | D68: 0 | E68: 0 | F68: 0 | G68: 0 | H68: 0 | I68: 0 | J68: 0 | K68: 0 | L68: 0 | M68: 0 | N68: 0 | O68: 0 | P68: 0 | Q68: 0 | R68: 0
B69: 52 | C69: 0 | D69: 0 | E69: 0 | F69: 0 | G69: 0 | H69: 0 | I69: 0 | J69: 0 | K69: 0 | L69: 0 | M69: 0 | N69: 0 | O69: 0 | P69: 0 | Q69: 0 | R69: 0
B70: 53 | C70: 0 | D70: 0 | E70: 0 | F70: 0 | G70: 0 | H70: 0 | I70: 0 | J70: 0 | K70: 0 | L70: 0 | M70: 0 | N70: 0 | O70: 0 | P70: 0 | Q70: 0 | R70: 0
B71: 54 | C71: 0 | D71: 0 | E71: 0 | F71: 0 | G71: 0 | H71: 0 | I71: 0 | J71: 0 | K71: 0 | L71: 0 | M71: 0 | N71: 0 | O71: 0 | P71: 0 | Q71: 0 | R71: 0
B72: 55 | C72: 0 | D72: 0 | E72: 0 | F72: 0 | G72: 0 | H72: 0 | I72: 0 | J72: 0 | K72: 0 | L72: 0 | M72: 0 | N72: 0 | O72: 0 | P72: 0 | Q72: 0 | R72: 0
B73: 56 | C73: 0 | D73: 0 | E73: 0 | F73: 0 | G73: 0 | H73: 0 | I73: 0 | J73: 0 | K73: 0 | L73: 0 | M73: 0 | N73: 0 | O73: 0 | P73: 0 | Q73: 0 | R73: 0
B74: 57 | C74: 0 | D74: 0 | E74: 0 | F74: 0 | G74: 0 | H74: 0 | I74: 0 | J74: 0 | K74: 0 | L74: 0 | M74: 0 | N74: 0 | O74: 0 | P74: 0 | Q74: 0 | R74: 0
B75: 58 | C75: 0 | D75: 0 | E75: 0 | F75: 0 | G75: 0 | H75: 0 | I75: 0 | J75: 0 | K75: 0 | L75: 0 | M75: 0 | N75: 0 | O75: 0 | P75: 0 | Q75: 0 | R75: 0
B76: 59 | C76: 0 | D76: 0 | E76: 0 | F76: 0 | G76: 0 | H76: 0 | I76: 0 | J76: 0 | K76: 0 | L76: 0 | M76: 0 | N76: 0 | O76: 0 | P76: 0 | Q76: 0 | R76: 0
B77: 60 | C77: 0 | D77: 0 | E77: 0 | F77: 0 | G77: 0 | H77: 0 | I77: 0 | J77: 0 | K77: 0 | L77: 0 | M77: 0 | N77: 0 | O77: 0 | P77: 0 | Q77: 0 | R77: 0
B78: 61 | C78: 0 | D78: 0 | E78: 0 | F78: 0 | G78: 0 | H78: 0 | I78: 0 | J78: 0 | K78: 0 | L78: 0 | M78: 0 | N78: 0 | O78: 0 | P78: 0 | Q78: 0 | R78: 0
B79: 62 | C79: 0 | D79: 0 | E79: 0 | F79: 0 | G79: 0 | H79: 0 | I79: 0 | J79: 0 | K79: 0 | L79: 0 | M79: 0 | N79: 0 | O79: 0 | P79: 0 | Q79: 0 | R79: 0
B80: 63 | C80: 0 | D80: 0 | E80: 0 | F80: 0 | G80: 0 | H80: 0 | I80: 0 | J80: 0 | K80: 0 | L80: 0 | M80: 0 | N80: 0 | O80: 0 | P80: 0 | Q80: 0 | R80: 0
B81: 64 | C81: 0 | D81: 0 | E81: 0 | F81: 0 | G81: 0 | H81: 0 | I81: 0 | J81: 0 | K81: 0 | L81: 0 | M81: 0 | N81: 0 | O81: 0 | P81: 0 | Q81: 0 | R81: 0
B82: 65 | C82: 0 | D82: 0 | E82: 0 | F82: 0 | G82: 0 | H82: 0 | I82: 0 | J82: 0 | K82: 0 | L82: 0 | M82: 0 | N82: 0 | O82: 0 | P82: 0 | Q82: 0 | R82: 0
B83: 66 | C83: =IF((D82-$J$3-$D$14)<=0,($J$3+(D82-$J$3)),($J$3+$D$14)) -> 0 | D83: 0 | E83: =IF(AND(((F82-$J$3+C83-F$14-D$14)<=0),D83=0),F82,IF(D83=0,$J$3-C83+F$14+D$14,F$14)) -> 0 | F83: =IF((F82-E83)<=0.0001,0,(F82-E83)*(1+(F$15/12))) -> 0 | G83: =IF(AND(((H82-$J$3+E83+C83-H$14-F$14-D$14)<=0),F83+D83=0),H82,IF(H$14>=H82,H82,IF(AND(F83=0,D83=0),$J$3-E83-C83+H$14+F$14+D$14,H$14))) -> 0 | H83: 0 | I83: =IF(AND(((J82-$J$3+G83+E83+C83-J$14-H$14-F$14-D$14)<=0),H83+F83+D83=0),J82,IF(J$14>=J82,J82, IF(AND(H83=0,F83=0,D83=0),$J$3-G83-E83-C83+J$14+H$14+F$14+D$14,J$14))) -> 0 | J83: 0 | K83: =IF(AND(((L82-$J$3+I83+G83+E83+C83-L$14-J$14-H$14-F$14-D$14)<=0),J83+H83+F83+D83=0),L82,IF(L$14>=L82,L82,IF(AND(J83=0,H83=0,F83=0,D83=0),$J$3-I83-G83-E83-C83+L$14+J$14+H$14+F$14+D$14,L$14))) -> 0 | L83: 0 | M83: =IF(AND(((N82-$J$3+K83+I83+G83+E83+C83-N$14-L$14-J$14-H$14-F$14-D$14)<=0),L83+J83+H83+F83+D83=0),N82,IF(N$14>=N82,N82,IF(AND(L83=0,J83=0,H83=0,F83=0),$J$3-K83-I83-G83-E83-C83+N$14+L$14+J$14+H$14+F$14+D$14,N$14))) -> 0 | N83: 0 | O83: =IF(AND(((P82-$J$3+M83+K83+I83+G83+E83+C83-P$14-N$14-L$14-J$14-H$14-F$14-D$14)<=0),N83+L83+J83+H83+F83+D83=0),P82,IF(P$14>=P82,P82,IF(AND(N83=0,L83=0,J83=0,H83=0,F83=0,D83=0),$J$3-M83-K83-I83-G83-E83-C83+P$14+N$14+L$14+J$14+H$14+F$14+D$14,P$14))) -> 0 | P83: 0 | Q83: =IF(AND(((R82-$J$3+O83+M83+K83+I83+G83+E83+C83-R$14-P$14-N$14-L$14-J$14-H$14-F$14-D$14)<=0),P83+N83+L83+J83+H83+F83+D83=0),R82,IF(R$14>=R82,R82,IF(AND(P83=0,N83=0,L83=0,J83=0,H83=0,F83=0,D83=0),$J$3-O83-M83-K83-I83-G83-E83-C83+R$14+P$14+N$14+L$14+J$14+H$14+F$14+D$14,R$14))) -> 0 | R83: 0
B84: 67 | C84: 0 | D84: 0 | E84: 0 | F84: 0 | G84: 0 | H84: =IF((H83-G84)<=0.0001,0,(H83-G84)*(1+(H$15/12))) -> 0 | I84: 0 | J84: =IF((J83-I84)<=0.0001,0,(J83-I84)*(1+(J$15/12))) -> 0 | K84: 0 | L84: =IF((L83-K84)<=0.0001,0,(L83-K84)*(1+(L$15/12))) -> 0 | M84: 0 | N84: 0 | O84: 0 | P84: =IF((P83-O84)<=0.0001,0,(P83-O84)*(1+(P$15/12))) -> 0 | Q84: 0 | R84: =IF((R83-Q84)<=0.0001,0,(R83-Q84)*(1+(R$15/12))) -> 0
B85: 68 | C85: 0 | D85: 0 | E85: 0 | F85: 0 | G85: 0 | H85: 0 | I85: 0 | J85: 0 | K85: 0 | L85: 0 | M85: 0 | N85: =IF((N84-M85)<=0.0001,0,(N84-M85)*(1+(N$15/12))) -> 0 | O85: 0 | P85: 0 | Q85: 0 | R85: 0
B86: 69 | C86: 0 | D86: =IF((D85-C86)<=0.0001,0,(D85-C86)*(1+(D$15/12))) -> 0 | E86: 0 | F86: 0 | G86: 0 | H86: 0 | I86: 0 | J86: 0 | K86: 0 | L86: 0 | M86: 0 | N86: 0 | O86: 0 | P86: 0 | Q86: 0 | R86: 0
B87: 70 | C87: 0 | D87: 0 | E87: 0 | F87: 0 | G87: 0 | H87: 0 | I87: 0 | J87: 0 | K87: 0 | L87: 0 | M87: 0 | N87: 0 | O87: 0 | P87: 0 | Q87: 0 | R87: 0
B88: 71 | C88: 0 | D88: 0 | E88: 0 | F88: 0 | G88: 0 | H88: 0 | I88: 0 | J88: 0 | K88: 0 | L88: 0 | M88: 0 | N88: 0 | O88: 0 | P88: 0 | Q88: 0 | R88: 0
B89: 72 | C89: 0 | D89: 0 | E89: 0 | F89: 0 | G89: 0 | H89: 0 | I89: 0 | J89: 0 | K89: 0 | L89: 0 | M89: 0 | N89: 0 | O89: 0 | P89: 0 | Q89: 0 | R89: 0
B90: 73 | C90: 0 | D90: 0 | E90: 0 | F90: 0 | G90: 0 | H90: 0 | I90: 0 | J90: 0 | K90: 0 | L90: 0 | M90: 0 | N90: 0 | O90: 0 | P90: 0 | Q90: 0 | R90: 0
B91: 74 | C91: 0 | D91: 0 | E91: 0 | F91: 0 | G91: 0 | H91: 0 | I91: 0 | J91: 0 | K91: 0 | L91: 0 | M91: 0 | N91: 0 | O91: 0 | P91: 0 | Q91: 0 | R91: 0
B92: 75 | C92: 0 | D92: 0 | E92: 0 | F92: 0 | G92: 0 | H92: 0 | I92: 0 | J92: 0 | K92: 0 | L92: 0 | M92: 0 | N92: 0 | O92: 0 | P92: 0 | Q92: 0 | R92: 0
B93: 76 | C93: 0 | D93: 0 | E93: 0 | F93: 0 | G93: 0 | H93: 0 | I93: 0 | J93: 0 | K93: 0 | L93: 0 | M93: 0 | N93: 0 | O93: 0 | P93: 0 | Q93: 0 | R93: 0
B94: 77 | C94: 0 | D94: 0 | E94: 0 | F94: 0 | G94: 0 | H94: 0 | I94: 0 | J94: 0 | K94: 0 | L94: 0 | M94: 0 | N94: 0 | O94: 0 | P94: 0 | Q94: 0 | R94: 0
B95: 78 | C95: 0 | D95: 0 | E95: 0 | F95: 0 | G95: 0 | H95: 0 | I95: 0 | J95: 0 | K95: 0 | L95: 0 | M95: 0 | N95: 0 | O95: 0 | P95: 0 | Q95: 0 | R95: 0
B96: 79 | C96: 0 | D96: 0 | E96: 0 | F96: 0 | G96: 0 | H96: 0 | I96: 0 | J96: 0 | K96: 0 | L96: 0 | M96: 0 | N96: 0 | O96: 0 | P96: 0 | Q96: 0 | R96: 0
B97: 80 | C97: 0 | D97: 0 | E97: 0 | F97: 0 | G97: 0 | H97: 0 | I97: 0 | J97: 0 | K97: 0 | L97: 0 | M97: 0 | N97: 0 | O97: 0 | P97: 0 | Q97: 0 | R97: 0
B98: 81 | C98: 0 | D98: 0 | E98: 0 | F98: 0 | G98: 0 | H98: 0 | I98: 0 | J98: 0 | K98: 0 | L98: 0 | M98: 0 | N98: 0 | O98: 0 | P98: 0 | Q98: 0 | R98: 0
B99: 82 | C99: 0 | D99: 0 | E99: 0 | F99: 0 | G99: 0 | H99: 0 | I99: 0 | J99: 0 | K99: 0 | L99: 0 | M99: 0 | N99: 0 | O99: 0 | P99: 0 | Q99: 0 | R99: 0
B100: 83 | C100: 0 | D100: 0 | E100: 0 | F100: 0 | G100: 0 | H100: 0 | I100: 0 | J100: 0 | K100: 0 | L100: 0 | M100: 0 | N100: 0 | O100: 0 | P100: 0 | Q100: 0 | R100: 0
B101: 84 | C101: 0 | D101: 0 | E101: 0 | F101: 0 | G101: 0 | H101: 0 | I101: 0 | J101: 0 | K101: 0 | L101: 0 | M101: 0 | N101: 0 | O101: 0 | P101: 0 | Q101: 0 | R101: 0
B102: 85 | C102: 0 | D102: 0 | E102: 0 | F102: 0 | G102: 0 | H102: 0 | I102: 0 | J102: 0 | K102: 0 | L102: 0 | M102: 0 | N102: 0 | O102: 0 | P102: 0 | Q102: 0 | R102: 0
B103: 86 | C103: 0 | D103: 0 | E103: 0 | F103: 0 | G103: 0 | H103: 0 | I103: 0 | J103: 0 | K103: 0 | L103: 0 | M103: 0 | N103: 0 | O103: 0 | P103: 0 | Q103: 0 | R103: 0
B104: 87 | C104: 0 | D104: 0 | E104: 0 | F104: 0 | G104: 0 | H104: 0 | I104: 0 | J104: 0 | K104: 0 | L104: 0 | M104: 0 | N104: 0 | O104: 0 | P104: 0 | Q104: 0 | R104: 0
B105: 88 | C105: 0 | D105: 0 | E105: 0 | F105: 0 | G105: 0 | H105: 0 | I105: 0 | J105: 0 | K105: 0 | L105: 0 | M105: 0 | N105: 0 | O105: 0 | P105: 0 | Q105: 0 | R105: 0
B106: 89 | C106: 0 | D106: 0 | E106: 0 | F106: 0 | G106: 0 | H106: 0 | I106: 0 | J106: 0 | K106: 0 | L106: 0 | M106: 0 | N106: 0 | O106: 0 | P106: 0 | Q106: 0 | R106: 0
B107: 90 | C107: 0 | D107: 0 | E107: 0 | F107: 0 | G107: 0 | H107: 0 | I107: 0 | J107: 0 | K107: 0 | L107: 0 | M107: 0 | N107: 0 | O107: 0 | P107: 0 | Q107: 0 | R107: 0
B108: 91 | C108: 0 | D108: 0 | E108: 0 | F108: 0 | G108: 0 | H108: 0 | I108: 0 | J108: 0 | K108: 0 | L108: 0 | M108: 0 | N108: 0 | O108: 0 | P108: 0 | Q108: 0 | R108: 0
B109: 92 | C109: 0 | D109: 0 | E109: 0 | F109: 0 | G109: 0 | H109: 0 | I109: 0 | J109: 0 | K109: 0 | L109: 0 | M109: 0 | N109: 0 | O109: 0 | P109: 0 | Q109: 0 | R109: 0
B110: 93 | C110: 0 | D110: 0 | E110: 0 | F110: 0 | G110: 0 | H110: 0 | I110: 0 | J110: 0 | K110: 0 | L110: 0 | M110: 0 | N110: 0 | O110: 0 | P110: 0 | Q110: 0 | R110: 0
B111: 94 | C111: 0 | D111: 0 | E111: 0 | F111: 0 | G111: 0 | H111: 0 | I111: 0 | J111: 0 | K111: 0 | L111: 0 | M111: 0 | N111: 0 | O111: 0 | P111: 0 | Q111: 0 | R111: 0
B112: 95 | C112: 0 | D112: 0 | E112: 0 | F112: 0 | G112: 0 | H112: 0 | I112: 0 | J112: 0 | K112: 0 | L112: 0 | M112: 0 | N112: 0 | O112: 0 | P112: 0 | Q112: 0 | R112: 0
B113: 96 | C113: 0 | D113: 0 | E113: 0 | F113: 0 | G113: 0 | H113: 0 | I113: 0 | J113: 0 | K113: 0 | L113: 0 | M113: 0 | N113: 0 | O113: 0 | P113: 0 | Q113: 0 | R113: 0
B114: 97 | C114: 0 | D114: 0 | E114: 0 | F114: 0 | G114: 0 | H114: 0 | I114: 0 | J114: 0 | K114: 0 | L114: 0 | M114: 0 | N114: 0 | O114: 0 | P114: 0 | Q114: 0 | R114: 0
B115: 98 | C115: 0 | D115: 0 | E115: 0 | F115: 0 | G115: 0 | H115: 0 | I115: 0 | J115: 0 | K115: 0 | L115: 0 | M115: 0 | N115: 0 | O115: 0 | P115: 0 | Q115: 0 | R115: 0
B116: 99 | C116: 0 | D116: 0 | E116: 0 | F116: 0 | G116: 0 | H116: 0 | I116: 0 | J116: 0 | K116: 0 | L116: 0 | M116: 0 | N116: 0 | O116: 0 | P116: 0 | Q116: 0 | R116: 0
B117: 100 | C117: 0 | D117: 0 | E117: 0 | F117: 0 | G117: 0 | H117: 0 | I117: 0 | J117: 0 | K117: 0 | L117: 0 | M117: 0 | N117: 0 | O117: 0 | P117: 0 | Q117: 0 | R117: 0
B118: 101 | C118: 0 | D118: 0 | E118: 0 | F118: 0 | G118: 0 | H118: 0 | I118: 0 | J118: 0 | K118: 0 | L118: 0 | M118: 0 | N118: 0 | O118: 0 | P118: 0 | Q118: 0 | R118: 0
B119: 102 | C119: 0 | D119: 0 | E119: 0 | F119: 0 | G119: 0 | H119: 0 | I119: 0 | J119: 0 | K119: 0 | L119: 0 | M119: 0 | N119: 0 | O119: 0 | P119: 0 | Q119: 0 | R119: 0
B120: 103 | C120: 0 | D120: 0 | E120: 0 | F120: 0 | G120: 0 | H120: 0 | I120: 0 | J120: 0 | K120: 0 | L120: 0 | M120: 0 | N120: 0 | O120: 0 | P120: 0 | Q120: 0 | R120: 0
B121: 104 | C121: 0 | D121: 0 | E121: 0 | F121: 0 | G121: 0 | H121: 0 | I121: 0 | J121: 0 | K121: 0 | L121: 0 | M121: 0 | N121: 0 | O121: 0 | P121: 0 | Q121: 0 | R121: 0
B122: 105 | C122: 0 | D122: 0 | E122: 0 | F122: 0 | G122: 0 | H122: 0 | I122: 0 | J122: 0 | K122: 0 | L122: 0 | M122: 0 | N122: 0 | O122: 0 | P122: 0 | Q122: 0 | R122: 0
B123: 106 | C123: 0 | D123: 0 | E123: 0 | F123: 0 | G123: 0 | H123: 0 | I123: 0 | J123: 0 | K123: 0 | L123: 0 | M123: 0 | N123: 0 | O123: 0 | P123: 0 | Q123: 0 | R123: 0
B124: 107 | C124: 0 | D124: 0 | E124: 0 | F124: 0 | G124: 0 | H124: 0 | I124: 0 | J124: 0 | K124: 0 | L124: 0 | M124: 0 | N124: 0 | O124: 0 | P124: 0 | Q124: 0 | R124: 0
B125: 108 | C125: 0 | D125: 0 | E125: 0 | F125: 0 | G125: 0 | H125: 0 | I125: 0 | J125: 0 | K125: 0 | L125: 0 | M125: 0 | N125: 0 | O125: 0 | P125: 0 | Q125: 0 | R125: 0
B126: 109 | C126: 0 | D126: 0 | E126: 0 | F126: 0 | G126: 0 | H126: 0 | I126: 0 | J126: 0 | K126: 0 | L126: 0 | M126: 0 | N126: 0 | O126: 0 | P126: 0 | Q126: 0 | R126: 0
B127: 110 | C127: 0 | D127: 0 | E127: 0 | F127: 0 | G127: 0 | H127: 0 | I127: 0 | J127: 0 | K127: 0 | L127: 0 | M127: 0 | N127: 0 | O127: 0 | P127: 0 | Q127: 0 | R127: 0
B128: 111 | C128: 0 | D128: 0 | E128: 0 | F128: 0 | G128: 0 | H128: 0 | I128: 0 | J128: 0 | K128: 0 | L128: 0 | M128: 0 | N128: 0 | O128: 0 | P128: 0 | Q128: 0 | R128: 0
B129: 112 | C129: 0 | D129: 0 | E129: 0 | F129: 0 | G129: 0 | H129: 0 | I129: 0 | J129: 0 | K129: 0 | L129: 0 | M129: 0 | N129: 0 | O129: 0 | P129: 0 | Q129: 0 | R129: 0
B130: 113 | C130: 0 | D130: 0 | E130: 0 | F130: 0 | G130: 0 | H130: 0 | I130: 0 | J130: 0 | K130: 0 | L130: 0 | M130: 0 | N130: 0 | O130: 0 | P130: 0 | Q130: 0 | R130: 0
B131: 114 | C131: 0 | D131: 0 | E131: 0 | F131: 0 | G131: 0 | H131: 0 | I131: 0 | J131: 0 | K131: 0 | L131: 0 | M131: 0 | N131: 0 | O131: 0 | P131: 0 | Q131: 0 | R131: 0
B132: 115 | C132: 0 | D132: 0 | E132: 0 | F132: 0 | G132: 0 | H132: 0 | I132: 0 | J132: 0 | K132: 0 | L132: 0 | M132: 0 | N132: 0 | O132: 0 | P132: 0 | Q132: 0 | R132: 0
B133: 116 | C133: 0 | D133: 0 | E133: 0 | F133: 0 | G133: 0 | H133: 0 | I133: 0 | J133: 0 | K133: 0 | L133: 0 | M133: 0 | N133: 0 | O133: 0 | P133: 0 | Q133: 0 | R133: 0
B134: 117 | C134: 0 | D134: 0 | E134: 0 | F134: 0 | G134: 0 | H134: 0 | I134: 0 | J134: 0 | K134: 0 | L134: 0 | M134: 0 | N134: 0 | O134: 0 | P134: 0 | Q134: 0 | R134: 0
B135: 118 | C135: 0 | D135: 0 | E135: 0 | F135: 0 | G135: 0 | H135: 0 | I135: 0 | J135: 0 | K135: 0 | L135: 0 | M135: 0 | N135: 0 | O135: 0 | P135: 0 | Q135: 0 | R135: 0
B136: 119 | C136: 0 | D136: 0 | E136: 0 | F136: 0 | G136: 0 | H136: 0 | I136: 0 | J136: 0 | K136: 0 | L136: 0 | M136: 0 | N136: 0 | O136: 0 | P136: 0 | Q136: 0 | R136: 0
B137: 120 | C137: 0 | D137: 0 | E137: 0 | F137: 0 | G137: 0 | H137: 0 | I137: 0 | J137: 0 | K137: 0 | L137: 0 | M137: 0 | N137: 0 | O137: 0 | P137: 0 | Q137: 0 | R137: 0

Sheet Debt Payoff Chart
C3: Debt Payoff Chart | H3: Enter all your numbers in the Debt Snowball Calculator tab and then click "Refresh Chart" to the right. | W3: Provided by: LifeAndMyFinances.com
H4: Then, print this sheet, put it on your fridge, and mark how well you're doing vs. your goal! | W4: Copyright 2016
H5: Color in the squares as you go and pay off that debt faster than you planned! Good luck!
C10: Monthly Tracker!
B13: X | C13: Y
A14: Max | B14: =$L$19 -> 44 | C14: =C16*11 -> 33,000.00
A15: Min | B15: 0 | C15: 0
A16: Incre | B16: 1 | C16: =ROUNDUP($J$19/11,-3) -> $3,000.00
I18: Month | J18: Debt Amount | L18: Debt Payoff Month
I19: 0 | J19: =SUM('Debt Snowball Calculator'!D13:R13) -> $24,700.00 | K19: 0 | L19: =VLOOKUP(I19,$J$19:$K$139,2,FALSE) -> 44
I20: 1 | J20: =SUM('Debt Snowball Calculator'!D18,'Debt Snowball Calculator'!F18,'Debt Snowball Calculator'!H18,'Debt Snowball Calculator'!J18,'Debt Snowball Calculator'!L18,'Debt Snowball Calculator'!N18,'Debt Snowball Calculator'!P18,'Debt Snowball Calculator'!R18) -> $23,796.00 | K20: 1
I21: 2 | J21: =SUM('Debt Snowball Calculator'!D19,'Debt Snowball Calculator'!F19,'Debt Snowball Calculator'!H19,'Debt Snowball Calculator'!J19,'Debt Snowball Calculator'!L19,'Debt Snowball Calculator'!N19,'Debt Snowball Calculator'!P19,'Debt Snowball Calculator'!R19) -> $23,350.84 | K21: 2
I22: 3 | J22: =SUM('Debt Snowball Calculator'!D20,'Debt Snowball Calculator'!F20,'Debt Snowball Calculator'!H20,'Debt Snowball Calculator'!J20,'Debt Snowball Calculator'!L20,'Debt Snowball Calculator'!N20,'Debt Snowball Calculator'!P20,'Debt Snowball Calculator'!R20) -> $22,899.65 | K22: 3
I23: 4 | J23: =SUM('Debt Snowball Calculator'!D21,'Debt Snowball Calculator'!F21,'Debt Snowball Calculator'!H21,'Debt Snowball Calculator'!J21,'Debt Snowball Calculator'!L21,'Debt Snowball Calculator'!N21,'Debt Snowball Calculator'!P21,'Debt Snowball Calculator'!R21) -> $22,442.34 | K23: 4
I24: 5 | J24: =SUM('Debt Snowball Calculator'!D22,'Debt Snowball Calculator'!F22,'Debt Snowball Calculator'!H22,'Debt Snowball Calculator'!J22,'Debt Snowball Calculator'!L22,'Debt Snowball Calculator'!N22,'Debt Snowball Calculator'!P22,'Debt Snowball Calculator'!R22) -> $21,978.66 | K24: 5
I25: 6 | J25: =SUM('Debt Snowball Calculator'!D23,'Debt Snowball Calculator'!F23,'Debt Snowball Calculator'!H23,'Debt Snowball Calculator'!J23,'Debt Snowball Calculator'!L23,'Debt Snowball Calculator'!N23,'Debt Snowball Calculator'!P23,'Debt Snowball Calculator'!R23) -> $21,508.43 | K25: 6
I26: 7 | J26: =SUM('Debt Snowball Calculator'!D24,'Debt Snowball Calculator'!F24,'Debt Snowball Calculator'!H24,'Debt Snowball Calculator'!J24,'Debt Snowball Calculator'!L24,'Debt Snowball Calculator'!N24,'Debt Snowball Calculator'!P24,'Debt Snowball Calculator'!R24) -> $21,031.54 | K26: 7
I27: 8 | J27: =SUM('Debt Snowball Calculator'!D25,'Debt Snowball Calculator'!F25,'Debt Snowball Calculator'!H25,'Debt Snowball Calculator'!J25,'Debt Snowball Calculator'!L25,'Debt Snowball Calculator'!N25,'Debt Snowball Calculator'!P25,'Debt Snowball Calculator'!R25) -> $20,547.90 | K27: 8
I28: 9 | J28: =SUM('Debt Snowball Calculator'!D26,'Debt Snowball Calculator'!F26,'Debt Snowball Calculator'!H26,'Debt Snowball Calculator'!J26,'Debt Snowball Calculator'!L26,'Debt Snowball Calculator'!N26,'Debt Snowball Calculator'!P26,'Debt Snowball Calculator'!R26) -> $20,057.38 | K28: 9
I29: 10 | J29: =SUM('Debt Snowball Calculator'!D27,'Debt Snowball Calculator'!F27,'Debt Snowball Calculator'!H27,'Debt Snowball Calculator'!J27,'Debt Snowball Calculator'!L27,'Debt Snowball Calculator'!N27,'Debt Snowball Calculator'!P27,'Debt Snowball Calculator'!R27) -> $19,559.88 | K29: 10
I30: 11 | J30: =SUM('Debt Snowball Calculator'!D28,'Debt Snowball Calculator'!F28,'Debt Snowball Calculator'!H28,'Debt Snowball Calculator'!J28,'Debt Snowball Calculator'!L28,'Debt Snowball Calculator'!N28,'Debt Snowball Calculator'!P28,'Debt Snowball Calculator'!R28) -> $19,056.56 | K30: 11
I31: 12 | J31: =SUM('Debt Snowball Calculator'!D29,'Debt Snowball Calculator'!F29,'Debt Snowball Calculator'!H29,'Debt Snowball Calculator'!J29,'Debt Snowball Calculator'!L29,'Debt Snowball Calculator'!N29,'Debt Snowball Calculator'!P29,'Debt Snowball Calculator'!R29) -> $18,547.49 | K31: 12 | L31: Month
I32: 13 | J32: =SUM('Debt Snowball Calculator'!D30,'Debt Snowball Calculator'!F30,'Debt Snowball Calculator'!H30,'Debt Snowball Calculator'!J30,'Debt Snowball Calculator'!L30,'Debt Snowball Calculator'!N30,'Debt Snowball Calculator'!P30,'Debt Snowball Calculator'!R30) -> $18,032.60 | K32: 13
I33: 14 | J33: =SUM('Debt Snowball Calculator'!D31,'Debt Snowball Calculator'!F31,'Debt Snowball Calculator'!H31,'Debt Snowball Calculator'!J31,'Debt Snowball Calculator'!L31,'Debt Snowball Calculator'!N31,'Debt Snowball Calculator'!P31,'Debt Snowball Calculator'!R31) -> $17,511.83 | K33: 14
I34: 15 | J34: =SUM('Debt Snowball Calculator'!D32,'Debt Snowball Calculator'!F32,'Debt Snowball Calculator'!H32,'Debt Snowball Calculator'!J32,'Debt Snowball Calculator'!L32,'Debt Snowball Calculator'!N32,'Debt Snowball Calculator'!P32,'Debt Snowball Calculator'!R32) -> $16,985.05 | K34: 15
I35: 16 | J35: =SUM('Debt Snowball Calculator'!D33,'Debt Snowball Calculator'!F33,'Debt Snowball Calculator'!H33,'Debt Snowball Calculator'!J33,'Debt Snowball Calculator'!L33,'Debt Snowball Calculator'!N33,'Debt Snowball Calculator'!P33,'Debt Snowball Calculator'!R33) -> $16,451.51 | K35: 16
I36: 17 | J36: =SUM('Debt Snowball Calculator'!D34,'Debt Snowball Calculator'!F34,'Debt Snowball Calculator'!H34,'Debt Snowball Calculator'!J34,'Debt Snowball Calculator'!L34,'Debt Snowball Calculator'!N34,'Debt Snowball Calculator'!P34,'Debt Snowball Calculator'!R34) -> $15,911.12 | K36: 17
I37: 18 | J37: =SUM('Debt Snowball Calculator'!D35,'Debt Snowball Calculator'!F35,'Debt Snowball Calculator'!H35,'Debt Snowball Calculator'!J35,'Debt Snowball Calculator'!L35,'Debt Snowball Calculator'!N35,'Debt Snowball Calculator'!P35,'Debt Snowball Calculator'!R35) -> $15,363.80 | K37: 18 | L37: Month
I38: 19 | J38: =SUM('Debt Snowball Calculator'!D36,'Debt Snowball Calculator'!F36,'Debt Snowball Calculator'!H36,'Debt Snowball Calculator'!J36,'Debt Snowball Calculator'!L36,'Debt Snowball Calculator'!N36,'Debt Snowball Calculator'!P36,'Debt Snowball Calculator'!R36) -> $14,809.43 | K38: 19
I39: 20 | J39: =SUM('Debt Snowball Calculator'!D37,'Debt Snowball Calculator'!F37,'Debt Snowball Calculator'!H37,'Debt Snowball Calculator'!J37,'Debt Snowball Calculator'!L37,'Debt Snowball Calculator'!N37,'Debt Snowball Calculator'!P37,'Debt Snowball Calculator'!R37) -> $14,247.92 | K39: 20
I40: 21 | J40: =SUM('Debt Snowball Calculator'!D38,'Debt Snowball Calculator'!F38,'Debt Snowball Calculator'!H38,'Debt Snowball Calculator'!J38,'Debt Snowball Calculator'!L38,'Debt Snowball Calculator'!N38,'Debt Snowball Calculator'!P38,'Debt Snowball Calculator'!R38) -> $13,679.17 | K40: 21
I41: 22 | J41: =SUM('Debt Snowball Calculator'!D39,'Debt Snowball Calculator'!F39,'Debt Snowball Calculator'!H39,'Debt Snowball Calculator'!J39,'Debt Snowball Calculator'!L39,'Debt Snowball Calculator'!N39,'Debt Snowball Calculator'!P39,'Debt Snowball Calculator'!R39) -> $13,101.79 | K41: 22
I42: 23 | J42: =SUM('Debt Snowball Calculator'!D40,'Debt Snowball Calculator'!F40,'Debt Snowball Calculator'!H40,'Debt Snowball Calculator'!J40,'Debt Snowball Calculator'!L40,'Debt Snowball Calculator'!N40,'Debt Snowball Calculator'!P40,'Debt Snowball Calculator'!R40) -> $12,515.47 | K42: 23
I43: 24 | J43: =SUM('Debt Snowball Calculator'!D41,'Debt Snowball Calculator'!F41,'Debt Snowball Calculator'!H41,'Debt Snowball Calculator'!J41,'Debt Snowball Calculator'!L41,'Debt Snowball Calculator'!N41,'Debt Snowball Calculator'!P41,'Debt Snowball Calculator'!R41) -> $12,101.60 | K43: 24
I44: 25 | J44: =SUM('Debt Snowball Calculator'!D42,'Debt Snowball Calculator'!F42,'Debt Snowball Calculator'!H42,'Debt Snowball Calculator'!J42,'Debt Snowball Calculator'!L42,'Debt Snowball Calculator'!N42,'Debt Snowball Calculator'!P42,'Debt Snowball Calculator'!R42) -> $11,733.21 | K44: 25
I45: 26 | J45: =SUM('Debt Snowball Calculator'!D43,'Debt Snowball Calculator'!F43,'Debt Snowball Calculator'!H43,'Debt Snowball Calculator'!J43,'Debt Snowball Calculator'!L43,'Debt Snowball Calculator'!N43,'Debt Snowball Calculator'!P43,'Debt Snowball Calculator'!R43) -> $11,357.26 | K45: 26
I46: 27 | J46: =SUM('Debt Snowball Calculator'!D44,'Debt Snowball Calculator'!F44,'Debt Snowball Calculator'!H44,'Debt Snowball Calculator'!J44,'Debt Snowball Calculator'!L44,'Debt Snowball Calculator'!N44,'Debt Snowball Calculator'!P44,'Debt Snowball Calculator'!R44) -> $10,973.60 | K46: 27
I47: 28 | J47: =SUM('Debt Snowball Calculator'!D45,'Debt Snowball Calculator'!F45,'Debt Snowball Calculator'!H45,'Debt Snowball Calculator'!J45,'Debt Snowball Calculator'!L45,'Debt Snowball Calculator'!N45,'Debt Snowball Calculator'!P45,'Debt Snowball Calculator'!R45) -> $10,582.07 | K47: 28
I48: 29 | J48: =SUM('Debt Snowball Calculator'!D46,'Debt Snowball Calculator'!F46,'Debt Snowball Calculator'!H46,'Debt Snowball Calculator'!J46,'Debt Snowball Calculator'!L46,'Debt Snowball Calculator'!N46,'Debt Snowball Calculator'!P46,'Debt Snowball Calculator'!R46) -> $10,182.53 | K48: 29
I49: 30 | J49: =SUM('Debt Snowball Calculator'!D47,'Debt Snowball Calculator'!F47,'Debt Snowball Calculator'!H47,'Debt Snowball Calculator'!J47,'Debt Snowball Calculator'!L47,'Debt Snowball Calculator'!N47,'Debt Snowball Calculator'!P47,'Debt Snowball Calculator'!R47) -> $9,539.14 | K49: 30
I50: 31 | J50: =SUM('Debt Snowball Calculator'!D48,'Debt Snowball Calculator'!F48,'Debt Snowball Calculator'!H48,'Debt Snowball Calculator'!J48,'Debt Snowball Calculator'!L48,'Debt Snowball Calculator'!N48,'Debt Snowball Calculator'!P48,'Debt Snowball Calculator'!R48) -> $8,884.72 | K50: 31
I51: 32 | J51: =SUM('Debt Snowball Calculator'!D49,'Debt Snowball Calculator'!F49,'Debt Snowball Calculator'!H49,'Debt Snowball Calculator'!J49,'Debt Snowball Calculator'!L49,'Debt Snowball Calculator'!N49,'Debt Snowball Calculator'!P49,'Debt Snowball Calculator'!R49) -> $8,219.11 | K51: 32
I52: 33 | J52: =SUM('Debt Snowball Calculator'!D50,'Debt Snowball Calculator'!F50,'Debt Snowball Calculator'!H50,'Debt Snowball Calculator'!J50,'Debt Snowball Calculator'!L50,'Debt Snowball Calculator'!N50,'Debt Snowball Calculator'!P50,'Debt Snowball Calculator'!R50) -> $7,542.09 | K52: 33
I53: 34 | J53: =SUM('Debt Snowball Calculator'!D51,'Debt Snowball Calculator'!F51,'Debt Snowball Calculator'!H51,'Debt Snowball Calculator'!J51,'Debt Snowball Calculator'!L51,'Debt Snowball Calculator'!N51,'Debt Snowball Calculator'!P51,'Debt Snowball Calculator'!R51) -> $6,853.48 | K53: 34
I54: 35 | J54: =SUM('Debt Snowball Calculator'!D52,'Debt Snowball Calculator'!F52,'Debt Snowball Calculator'!H52,'Debt Snowball Calculator'!J52,'Debt Snowball Calculator'!L52,'Debt Snowball Calculator'!N52,'Debt Snowball Calculator'!P52,'Debt Snowball Calculator'!R52) -> $6,153.08 | K54: 35
I55: 36 | J55: =SUM('Debt Snowball Calculator'!D53,'Debt Snowball Calculator'!F53,'Debt Snowball Calculator'!H53,'Debt Snowball Calculator'!J53,'Debt Snowball Calculator'!L53,'Debt Snowball Calculator'!N53,'Debt Snowball Calculator'!P53,'Debt Snowball Calculator'!R53) -> $5,440.68 | K55: 36
I56: 37 | J56: =SUM('Debt Snowball Calculator'!D54,'Debt Snowball Calculator'!F54,'Debt Snowball Calculator'!H54,'Debt Snowball Calculator'!J54,'Debt Snowball Calculator'!L54,'Debt Snowball Calculator'!N54,'Debt Snowball Calculator'!P54,'Debt Snowball Calculator'!R54) -> $4,716.08 | K56: 37
I57: 38 | J57: =SUM('Debt Snowball Calculator'!D55,'Debt Snowball Calculator'!F55,'Debt Snowball Calculator'!H55,'Debt Snowball Calculator'!J55,'Debt Snowball Calculator'!L55,'Debt Snowball Calculator'!N55,'Debt Snowball Calculator'!P55,'Debt Snowball Calculator'!R55) -> $3,979.08 | K57: 38
I58: 39 | J58: =SUM('Debt Snowball Calculator'!D56,'Debt Snowball Calculator'!F56,'Debt Snowball Calculator'!H56,'Debt Snowball Calculator'!J56,'Debt Snowball Calculator'!L56,'Debt Snowball Calculator'!N56,'Debt Snowball Calculator'!P56,'Debt Snowball Calculator'!R56) -> $3,229.45 | K58: 39
I59: 40 | J59: =SUM('Debt Snowball Calculator'!D57,'Debt Snowball Calculator'!F57,'Debt Snowball Calculator'!H57,'Debt Snowball Calculator'!J57,'Debt Snowball Calculator'!L57,'Debt Snowball Calculator'!N57,'Debt Snowball Calculator'!P57,'Debt Snowball Calculator'!R57) -> $2,466.99 | K59: 40
I60: 41 | J60: =SUM('Debt Snowball Calculator'!D58,'Debt Snowball Calculator'!F58,'Debt Snowball Calculator'!H58,'Debt Snowball Calculator'!J58,'Debt Snowball Calculator'!L58,'Debt Snowball Calculator'!N58,'Debt Snowball Calculator'!P58,'Debt Snowball Calculator'!R58) -> $1,691.47 | K60: 41
I61: 42 | J61: =SUM('Debt Snowball Calculator'!D59,'Debt Snowball Calculator'!F59,'Debt Snowball Calculator'!H59,'Debt Snowball Calculator'!J59,'Debt Snowball Calculator'!L59,'Debt Snowball Calculator'!N59,'Debt Snowball Calculator'!P59,'Debt Snowball Calculator'!R59) -> $902.66 | K61: 42
I62: 43 | J62: =SUM('Debt Snowball Calculator'!D60,'Debt Snowball Calculator'!F60,'Debt Snowball Calculator'!H60,'Debt Snowball Calculator'!J60,'Debt Snowball Calculator'!L60,'Debt Snowball Calculator'!N60,'Debt Snowball Calculator'!P60,'Debt Snowball Calculator'!R60) -> $100.35 | K62: 43
I63: 44 | J63: =SUM('Debt Snowball Calculator'!D61,'Debt Snowball Calculator'!F61,'Debt Snowball Calculator'!H61,'Debt Snowball Calculator'!J61,'Debt Snowball Calculator'!L61,'Debt Snowball Calculator'!N61,'Debt Snowball Calculator'!P61,'Debt Snowball Calculator'!R61) -> 0 | K63: 44
I64: 45 | J64: =SUM('Debt Snowball Calculator'!D62,'Debt Snowball Calculator'!F62,'Debt Snowball Calculator'!H62,'Debt Snowball Calculator'!J62,'Debt Snowball Calculator'!L62,'Debt Snowball Calculator'!N62,'Debt Snowball Calculator'!P62,'Debt Snowball Calculator'!R62) -> 0 | K64: 45
I65: 46 | J65: =SUM('Debt Snowball Calculator'!D63,'Debt Snowball Calculator'!F63,'Debt Snowball Calculator'!H63,'Debt Snowball Calculator'!J63,'Debt Snowball Calculator'!L63,'Debt Snowball Calculator'!N63,'Debt Snowball Calculator'!P63,'Debt Snowball Calculator'!R63) -> 0 | K65: 46
I66: 47 | J66: =SUM('Debt Snowball Calculator'!D64,'Debt Snowball Calculator'!F64,'Debt Snowball Calculator'!H64,'Debt Snowball Calculator'!J64,'Debt Snowball Calculator'!L64,'Debt Snowball Calculator'!N64,'Debt Snowball Calculator'!P64,'Debt Snowball Calculator'!R64) -> 0 | K66: 47
I67: 48 | J67: =SUM('Debt Snowball Calculator'!D65,'Debt Snowball Calculator'!F65,'Debt Snowball Calculator'!H65,'Debt Snowball Calculator'!J65,'Debt Snowball Calculator'!L65,'Debt Snowball Calculator'!N65,'Debt Snowball Calculator'!P65,'Debt Snowball Calculator'!R65) -> 0 | K67: 48
I68: 49 | J68: =SUM('Debt Snowball Calculator'!D66,'Debt Snowball Calculator'!F66,'Debt Snowball Calculator'!H66,'Debt Snowball Calculator'!J66,'Debt Snowball Calculator'!L66,'Debt Snowball Calculator'!N66,'Debt Snowball Calculator'!P66,'Debt Snowball Calculator'!R66) -> 0 | K68: 49
I69: 50 | J69: =SUM('Debt Snowball Calculator'!D67,'Debt Snowball Calculator'!F67,'Debt Snowball Calculator'!H67,'Debt Snowball Calculator'!J67,'Debt Snowball Calculator'!L67,'Debt Snowball Calculator'!N67,'Debt Snowball Calculator'!P67,'Debt Snowball Calculator'!R67) -> 0 | K69: 50
I70: 51 | J70: =SUM('Debt Snowball Calculator'!D68,'Debt Snowball Calculator'!F68,'Debt Snowball Calculator'!H68,'Debt Snowball Calculator'!J68,'Debt Snowball Calculator'!L68,'Debt Snowball Calculator'!N68,'Debt Snowball Calculator'!P68,'Debt Snowball Calculator'!R68) -> 0 | K70: 51
I71: 52 | J71: =SUM('Debt Snowball Calculator'!D69,'Debt Snowball Calculator'!F69,'Debt Snowball Calculator'!H69,'Debt Snowball Calculator'!J69,'Debt Snowball Calculator'!L69,'Debt Snowball Calculator'!N69,'Debt Snowball Calculator'!P69,'Debt Snowball Calculator'!R69) -> 0 | K71: 52
I72: 53 | J72: =SUM('Debt Snowball Calculator'!D70,'Debt Snowball Calculator'!F70,'Debt Snowball Calculator'!H70,'Debt Snowball Calculator'!J70,'Debt Snowball Calculator'!L70,'Debt Snowball Calculator'!N70,'Debt Snowball Calculator'!P70,'Debt Snowball Calculator'!R70) -> 0 | K72: 53
I73: 54 | J73: =SUM('Debt Snowball Calculator'!D71,'Debt Snowball Calculator'!F71,'Debt Snowball Calculator'!H71,'Debt Snowball Calculator'!J71,'Debt Snowball Calculator'!L71,'Debt Snowball Calculator'!N71,'Debt Snowball Calculator'!P71,'Debt Snowball Calculator'!R71) -> 0 | K73: 54
I74: 55 | J74: =SUM('Debt Snowball Calculator'!D72,'Debt Snowball Calculator'!F72,'Debt Snowball Calculator'!H72,'Debt Snowball Calculator'!J72,'Debt Snowball Calculator'!L72,'Debt Snowball Calculator'!N72,'Debt Snowball Calculator'!P72,'Debt Snowball Calculator'!R72) -> 0 | K74: 55
I75: 56 | J75: =SUM('Debt Snowball Calculator'!D73,'Debt Snowball Calculator'!F73,'Debt Snowball Calculator'!H73,'Debt Snowball Calculator'!J73,'Debt Snowball Calculator'!L73,'Debt Snowball Calculator'!N73,'Debt Snowball Calculator'!P73,'Debt Snowball Calculator'!R73) -> 0 | K75: 56
I76: 57 | J76: =SUM('Debt Snowball Calculator'!D74,'Debt Snowball Calculator'!F74,'Debt Snowball Calculator'!H74,'Debt Snowball Calculator'!J74,'Debt Snowball Calculator'!L74,'Debt Snowball Calculator'!N74,'Debt Snowball Calculator'!P74,'Debt Snowball Calculator'!R74) -> 0 | K76: 57
I77: 58 | J77: =SUM('Debt Snowball Calculator'!D75,'Debt Snowball Calculator'!F75,'Debt Snowball Calculator'!H75,'Debt Snowball Calculator'!J75,'Debt Snowball Calculator'!L75,'Debt Snowball Calculator'!N75,'Debt Snowball Calculator'!P75,'Debt Snowball Calculator'!R75) -> 0 | K77: 58
I78: 59 | J78: =SUM('Debt Snowball Calculator'!D76,'Debt Snowball Calculator'!F76,'Debt Snowball Calculator'!H76,'Debt Snowball Calculator'!J76,'Debt Snowball Calculator'!L76,'Debt Snowball Calculator'!N76,'Debt Snowball Calculator'!P76,'Debt Snowball Calculator'!R76) -> 0 | K78: 59
I79: 60 | J79: =SUM('Debt Snowball Calculator'!D77,'Debt Snowball Calculator'!F77,'Debt Snowball Calculator'!H77,'Debt Snowball Calculator'!J77,'Debt Snowball Calculator'!L77,'Debt Snowball Calculator'!N77,'Debt Snowball Calculator'!P77,'Debt Snowball Calculator'!R77) -> 0 | K79: 60
I80: 61 | J80: =SUM('Debt Snowball Calculator'!D78,'Debt Snowball Calculator'!F78,'Debt Snowball Calculator'!H78,'Debt Snowball Calculator'!J78,'Debt Snowball Calculator'!L78,'Debt Snowball Calculator'!N78,'Debt Snowball Calculator'!P78,'Debt Snowball Calculator'!R78) -> 0 | K80: 61
I81: 62 | J81: =SUM('Debt Snowball Calculator'!D79,'Debt Snowball Calculator'!F79,'Debt Snowball Calculator'!H79,'Debt Snowball Calculator'!J79,'Debt Snowball Calculator'!L79,'Debt Snowball Calculator'!N79,'Debt Snowball Calculator'!P79,'Debt Snowball Calculator'!R79) -> 0 | K81: 62
I82: 63 | J82: =SUM('Debt Snowball Calculator'!D80,'Debt Snowball Calculator'!F80,'Debt Snowball Calculator'!H80,'Debt Snowball Calculator'!J80,'Debt Snowball Calculator'!L80,'Debt Snowball Calculator'!N80,'Debt Snowball Calculator'!P80,'Debt Snowball Calculator'!R80) -> 0 | K82: 63
I83: 64 | J83: =SUM('Debt Snowball Calculator'!D81,'Debt Snowball Calculator'!F81,'Debt Snowball Calculator'!H81,'Debt Snowball Calculator'!J81,'Debt Snowball Calculator'!L81,'Debt Snowball Calculator'!N81,'Debt Snowball Calculator'!P81,'Debt Snowball Calculator'!R81) -> 0 | K83: 64
I84: 65 | J84: =SUM('Debt Snowball Calculator'!D82,'Debt Snowball Calculator'!F82,'Debt Snowball Calculator'!H82,'Debt Snowball Calculator'!J82,'Debt Snowball Calculator'!L82,'Debt Snowball Calculator'!N82,'Debt Snowball Calculator'!P82,'Debt Snowball Calculator'!R82) -> 0 | K84: 65
I85: 66 | J85: =SUM('Debt Snowball Calculator'!D83,'Debt Snowball Calculator'!F83,'Debt Snowball Calculator'!H83,'Debt Snowball Calculator'!J83,'Debt Snowball Calculator'!L83,'Debt Snowball Calculator'!N83,'Debt Snowball Calculator'!P83,'Debt Snowball Calculator'!R83) -> 0 | K85: 66
I86: 67 | J86: =SUM('Debt Snowball Calculator'!D84,'Debt Snowball Calculator'!F84,'Debt Snowball Calculator'!H84,'Debt Snowball Calculator'!J84,'Debt Snowball Calculator'!L84,'Debt Snowball Calculator'!N84,'Debt Snowball Calculator'!P84,'Debt Snowball Calculator'!R84) -> 0 | K86: 67
I87: 68 | J87: =SUM('Debt Snowball Calculator'!D85,'Debt Snowball Calculator'!F85,'Debt Snowball Calculator'!H85,'Debt Snowball Calculator'!J85,'Debt Snowball Calculator'!L85,'Debt Snowball Calculator'!N85,'Debt Snowball Calculator'!P85,'Debt Snowball Calculator'!R85) -> 0 | K87: 68
I88: 69 | J88: =SUM('Debt Snowball Calculator'!D86,'Debt Snowball Calculator'!F86,'Debt Snowball Calculator'!H86,'Debt Snowball Calculator'!J86,'Debt Snowball Calculator'!L86,'Debt Snowball Calculator'!N86,'Debt Snowball Calculator'!P86,'Debt Snowball Calculator'!R86) -> 0 | K88: 69
I89: 70 | J89: =SUM('Debt Snowball Calculator'!D87,'Debt Snowball Calculator'!F87,'Debt Snowball Calculator'!H87,'Debt Snowball Calculator'!J87,'Debt Snowball Calculator'!L87,'Debt Snowball Calculator'!N87,'Debt Snowball Calculator'!P87,'Debt Snowball Calculator'!R87) -> 0 | K89: 70
I90: 71 | J90: =SUM('Debt Snowball Calculator'!D88,'Debt Snowball Calculator'!F88,'Debt Snowball Calculator'!H88,'Debt Snowball Calculator'!J88,'Debt Snowball Calculator'!L88,'Debt Snowball Calculator'!N88,'Debt Snowball Calculator'!P88,'Debt Snowball Calculator'!R88) -> 0 | K90: 71
I91: 72 | J91: =SUM('Debt Snowball Calculator'!D89,'Debt Snowball Calculator'!F89,'Debt Snowball Calculator'!H89,'Debt Snowball Calculator'!J89,'Debt Snowball Calculator'!L89,'Debt Snowball Calculator'!N89,'Debt Snowball Calculator'!P89,'Debt Snowball Calculator'!R89) -> 0 | K91: 72
I92: 73 | J92: =SUM('Debt Snowball Calculator'!D90,'Debt Snowball Calculator'!F90,'Debt Snowball Calculator'!H90,'Debt Snowball Calculator'!J90,'Debt Snowball Calculator'!L90,'Debt Snowball Calculator'!N90,'Debt Snowball Calculator'!P90,'Debt Snowball Calculator'!R90) -> 0 | K92: 73
I93: 74 | J93: =SUM('Debt Snowball Calculator'!D91,'Debt Snowball Calculator'!F91,'Debt Snowball Calculator'!H91,'Debt Snowball Calculator'!J91,'Debt Snowball Calculator'!L91,'Debt Snowball Calculator'!N91,'Debt Snowball Calculator'!P91,'Debt Snowball Calculator'!R91) -> 0 | K93: 74
I94: 75 | J94: =SUM('Debt Snowball Calculator'!D92,'Debt Snowball Calculator'!F92,'Debt Snowball Calculator'!H92,'Debt Snowball Calculator'!J92,'Debt Snowball Calculator'!L92,'Debt Snowball Calculator'!N92,'Debt Snowball Calculator'!P92,'Debt Snowball Calculator'!R92) -> 0 | K94: 75
I95: 76 | J95: =SUM('Debt Snowball Calculator'!D93,'Debt Snowball Calculator'!F93,'Debt Snowball Calculator'!H93,'Debt Snowball Calculator'!J93,'Debt Snowball Calculator'!L93,'Debt Snowball Calculator'!N93,'Debt Snowball Calculator'!P93,'Debt Snowball Calculator'!R93) -> 0 | K95: 76
I96: 77 | J96: =SUM('Debt Snowball Calculator'!D94,'Debt Snowball Calculator'!F94,'Debt Snowball Calculator'!H94,'Debt Snowball Calculator'!J94,'Debt Snowball Calculator'!L94,'Debt Snowball Calculator'!N94,'Debt Snowball Calculator'!P94,'Debt Snowball Calculator'!R94) -> 0 | K96: 77
I97: 78 | J97: =SUM('Debt Snowball Calculator'!D95,'Debt Snowball Calculator'!F95,'Debt Snowball Calculator'!H95,'Debt Snowball Calculator'!J95,'Debt Snowball Calculator'!L95,'Debt Snowball Calculator'!N95,'Debt Snowball Calculator'!P95,'Debt Snowball Calculator'!R95) -> 0 | K97: 78
I98: 79 | J98: =SUM('Debt Snowball Calculator'!D96,'Debt Snowball Calculator'!F96,'Debt Snowball Calculator'!H96,'Debt Snowball Calculator'!J96,'Debt Snowball Calculator'!L96,'Debt Snowball Calculator'!N96,'Debt Snowball Calculator'!P96,'Debt Snowball Calculator'!R96) -> 0 | K98: 79
I99: 80 | J99: =SUM('Debt Snowball Calculator'!D97,'Debt Snowball Calculator'!F97,'Debt Snowball Calculator'!H97,'Debt Snowball Calculator'!J97,'Debt Snowball Calculator'!L97,'Debt Snowball Calculator'!N97,'Debt Snowball Calculator'!P97,'Debt Snowball Calculator'!R97) -> 0 | K99: 80
I100: 81 | J100: =SUM('Debt Snowball Calculator'!D98,'Debt Snowball Calculator'!F98,'Debt Snowball Calculator'!H98,'Debt Snowball Calculator'!J98,'Debt Snowball Calculator'!L98,'Debt Snowball Calculator'!N98,'Debt Snowball Calculator'!P98,'Debt Snowball Calculator'!R98) -> 0 | K100: 81
I101: 82 | J101: =SUM('Debt Snowball Calculator'!D99,'Debt Snowball Calculator'!F99,'Debt Snowball Calculator'!H99,'Debt Snowball Calculator'!J99,'Debt Snowball Calculator'!L99,'Debt Snowball Calculator'!N99,'Debt Snowball Calculator'!P99,'Debt Snowball Calculator'!R99) -> 0 | K101: 82
I102: 83 | J102: =SUM('Debt Snowball Calculator'!D100,'Debt Snowball Calculator'!F100,'Debt Snowball Calculator'!H100,'Debt Snowball Calculator'!J100,'Debt Snowball Calculator'!L100,'Debt Snowball Calculator'!N100,'Debt Snowball Calculator'!P100,'Debt Snowball Calculator'!R100) -> 0 | K102: 83
I103: 84 | J103: =SUM('Debt Snowball Calculator'!D101,'Debt Snowball Calculator'!F101,'Debt Snowball Calculator'!H101,'Debt Snowball Calculator'!J101,'Debt Snowball Calculator'!L101,'Debt Snowball Calculator'!N101,'Debt Snowball Calculator'!P101,'Debt Snowball Calculator'!R101) -> 0 | K103: 84
I104: 85 | J104: =SUM('Debt Snowball Calculator'!D102,'Debt Snowball Calculator'!F102,'Debt Snowball Calculator'!H102,'Debt Snowball Calculator'!J102,'Debt Snowball Calculator'!L102,'Debt Snowball Calculator'!N102,'Debt Snowball Calculator'!P102,'Debt Snowball Calculator'!R102) -> 0 | K104: 85
I105: 86 | J105: =SUM('Debt Snowball Calculator'!D103,'Debt Snowball Calculator'!F103,'Debt Snowball Calculator'!H103,'Debt Snowball Calculator'!J103,'Debt Snowball Calculator'!L103,'Debt Snowball Calculator'!N103,'Debt Snowball Calculator'!P103,'Debt Snowball Calculator'!R103) -> 0 | K105: 86
I106: 87 | J106: =SUM('Debt Snowball Calculator'!D104,'Debt Snowball Calculator'!F104,'Debt Snowball Calculator'!H104,'Debt Snowball Calculator'!J104,'Debt Snowball Calculator'!L104,'Debt Snowball Calculator'!N104,'Debt Snowball Calculator'!P104,'Debt Snowball Calculator'!R104) -> 0 | K106: 87
I107: 88 | J107: =SUM('Debt Snowball Calculator'!D105,'Debt Snowball Calculator'!F105,'Debt Snowball Calculator'!H105,'Debt Snowball Calculator'!J105,'Debt Snowball Calculator'!L105,'Debt Snowball Calculator'!N105,'Debt Snowball Calculator'!P105,'Debt Snowball Calculator'!R105) -> 0 | K107: 88
I108: 89 | J108: =SUM('Debt Snowball Calculator'!D106,'Debt Snowball Calculator'!F106,'Debt Snowball Calculator'!H106,'Debt Snowball Calculator'!J106,'Debt Snowball Calculator'!L106,'Debt Snowball Calculator'!N106,'Debt Snowball Calculator'!P106,'Debt Snowball Calculator'!R106) -> 0 | K108: 89
I109: 90 | J109: =SUM('Debt Snowball Calculator'!D107,'Debt Snowball Calculator'!F107,'Debt Snowball Calculator'!H107,'Debt Snowball Calculator'!J107,'Debt Snowball Calculator'!L107,'Debt Snowball Calculator'!N107,'Debt Snowball Calculator'!P107,'Debt Snowball Calculator'!R107) -> 0 | K109: 90
I110: 91 | J110: =SUM('Debt Snowball Calculator'!D108,'Debt Snowball Calculator'!F108,'Debt Snowball Calculator'!H108,'Debt Snowball Calculator'!J108,'Debt Snowball Calculator'!L108,'Debt Snowball Calculator'!N108,'Debt Snowball Calculator'!P108,'Debt Snowball Calculator'!R108) -> 0 | K110: 91
I111: 92 | J111: =SUM('Debt Snowball Calculator'!D109,'Debt Snowball Calculator'!F109,'Debt Snowball Calculator'!H109,'Debt Snowball Calculator'!J109,'Debt Snowball Calculator'!L109,'Debt Snowball Calculator'!N109,'Debt Snowball Calculator'!P109,'Debt Snowball Calculator'!R109) -> 0 | K111: 92
I112: 93 | J112: =SUM('Debt Snowball Calculator'!D110,'Debt Snowball Calculator'!F110,'Debt Snowball Calculator'!H110,'Debt Snowball Calculator'!J110,'Debt Snowball Calculator'!L110,'Debt Snowball Calculator'!N110,'Debt Snowball Calculator'!P110,'Debt Snowball Calculator'!R110) -> 0 | K112: 93
I113: 94 | J113: =SUM('Debt Snowball Calculator'!D111,'Debt Snowball Calculator'!F111,'Debt Snowball Calculator'!H111,'Debt Snowball Calculator'!J111,'Debt Snowball Calculator'!L111,'Debt Snowball Calculator'!N111,'Debt Snowball Calculator'!P111,'Debt Snowball Calculator'!R111) -> 0 | K113: 94
I114: 95 | J114: =SUM('Debt Snowball Calculator'!D112,'Debt Snowball Calculator'!F112,'Debt Snowball Calculator'!H112,'Debt Snowball Calculator'!J112,'Debt Snowball Calculator'!L112,'Debt Snowball Calculator'!N112,'Debt Snowball Calculator'!P112,'Debt Snowball Calculator'!R112) -> 0 | K114: 95
I115: 96 | J115: =SUM('Debt Snowball Calculator'!D113,'Debt Snowball Calculator'!F113,'Debt Snowball Calculator'!H113,'Debt Snowball Calculator'!J113,'Debt Snowball Calculator'!L113,'Debt Snowball Calculator'!N113,'Debt Snowball Calculator'!P113,'Debt Snowball Calculator'!R113) -> 0 | K115: 96
I116: 97 | J116: =SUM('Debt Snowball Calculator'!D114,'Debt Snowball Calculator'!F114,'Debt Snowball Calculator'!H114,'Debt Snowball Calculator'!J114,'Debt Snowball Calculator'!L114,'Debt Snowball Calculator'!N114,'Debt Snowball Calculator'!P114,'Debt Snowball Calculator'!R114) -> 0 | K116: 97
I117: 98 | J117: =SUM('Debt Snowball Calculator'!D115,'Debt Snowball Calculator'!F115,'Debt Snowball Calculator'!H115,'Debt Snowball Calculator'!J115,'Debt Snowball Calculator'!L115,'Debt Snowball Calculator'!N115,'Debt Snowball Calculator'!P115,'Debt Snowball Calculator'!R115) -> 0 | K117: 98
I118: 99 | J118: =SUM('Debt Snowball Calculator'!D116,'Debt Snowball Calculator'!F116,'Debt Snowball Calculator'!H116,'Debt Snowball Calculator'!J116,'Debt Snowball Calculator'!L116,'Debt Snowball Calculator'!N116,'Debt Snowball Calculator'!P116,'Debt Snowball Calculator'!R116) -> 0 | K118: 99
I119: 100 | J119: =SUM('Debt Snowball Calculator'!D117,'Debt Snowball Calculator'!F117,'Debt Snowball Calculator'!H117,'Debt Snowball Calculator'!J117,'Debt Snowball Calculator'!L117,'Debt Snowball Calculator'!N117,'Debt Snowball Calculator'!P117,'Debt Snowball Calculator'!R117) -> 0 | K119: 100
I120: 101 | J120: =SUM('Debt Snowball Calculator'!D118,'Debt Snowball Calculator'!F118,'Debt Snowball Calculator'!H118,'Debt Snowball Calculator'!J118,'Debt Snowball Calculator'!L118,'Debt Snowball Calculator'!N118,'Debt Snowball Calculator'!P118,'Debt Snowball Calculator'!R118) -> 0 | K120: 101
I121: 102 | J121: =SUM('Debt Snowball Calculator'!D119,'Debt Snowball Calculator'!F119,'Debt Snowball Calculator'!H119,'Debt Snowball Calculator'!J119,'Debt Snowball Calculator'!L119,'Debt Snowball Calculator'!N119,'Debt Snowball Calculator'!P119,'Debt Snowball Calculator'!R119) -> 0 | K121: 102
I122: 103 | J122: =SUM('Debt Snowball Calculator'!D120,'Debt Snowball Calculator'!F120,'Debt Snowball Calculator'!H120,'Debt Snowball Calculator'!J120,'Debt Snowball Calculator'!L120,'Debt Snowball Calculator'!N120,'Debt Snowball Calculator'!P120,'Debt Snowball Calculator'!R120) -> 0 | K122: 103
I123: 104 | J123: =SUM('Debt Snowball Calculator'!D121,'Debt Snowball Calculator'!F121,'Debt Snowball Calculator'!H121,'Debt Snowball Calculator'!J121,'Debt Snowball Calculator'!L121,'Debt Snowball Calculator'!N121,'Debt Snowball Calculator'!P121,'Debt Snowball Calculator'!R121) -> 0 | K123: 104
I124: 105 | J124: =SUM('Debt Snowball Calculator'!D122,'Debt Snowball Calculator'!F122,'Debt Snowball Calculator'!H122,'Debt Snowball Calculator'!J122,'Debt Snowball Calculator'!L122,'Debt Snowball Calculator'!N122,'Debt Snowball Calculator'!P122,'Debt Snowball Calculator'!R122) -> 0 | K124: 105
I125: 106 | J125: =SUM('Debt Snowball Calculator'!D123,'Debt Snowball Calculator'!F123,'Debt Snowball Calculator'!H123,'Debt Snowball Calculator'!J123,'Debt Snowball Calculator'!L123,'Debt Snowball Calculator'!N123,'Debt Snowball Calculator'!P123,'Debt Snowball Calculator'!R123) -> 0 | K125: 106
I126: 107 | J126: =SUM('Debt Snowball Calculator'!D124,'Debt Snowball Calculator'!F124,'Debt Snowball Calculator'!H124,'Debt Snowball Calculator'!J124,'Debt Snowball Calculator'!L124,'Debt Snowball Calculator'!N124,'Debt Snowball Calculator'!P124,'Debt Snowball Calculator'!R124) -> 0 | K126: 107
I127: 108 | J127: =SUM('Debt Snowball Calculator'!D125,'Debt Snowball Calculator'!F125,'Debt Snowball Calculator'!H125,'Debt Snowball Calculator'!J125,'Debt Snowball Calculator'!L125,'Debt Snowball Calculator'!N125,'Debt Snowball Calculator'!P125,'Debt Snowball Calculator'!R125) -> 0 | K127: 108
I128: 109 | J128: =SUM('Debt Snowball Calculator'!D126,'Debt Snowball Calculator'!F126,'Debt Snowball Calculator'!H126,'Debt Snowball Calculator'!J126,'Debt Snowball Calculator'!L126,'Debt Snowball Calculator'!N126,'Debt Snowball Calculator'!P126,'Debt Snowball Calculator'!R126) -> 0 | K128: 109
I129: 110 | J129: =SUM('Debt Snowball Calculator'!D127,'Debt Snowball Calculator'!F127,'Debt Snowball Calculator'!H127,'Debt Snowball Calculator'!J127,'Debt Snowball Calculator'!L127,'Debt Snowball Calculator'!N127,'Debt Snowball Calculator'!P127,'Debt Snowball Calculator'!R127) -> 0 | K129: 110
I130: 111 | J130: =SUM('Debt Snowball Calculator'!D128,'Debt Snowball Calculator'!F128,'Debt Snowball Calculator'!H128,'Debt Snowball Calculator'!J128,'Debt Snowball Calculator'!L128,'Debt Snowball Calculator'!N128,'Debt Snowball Calculator'!P128,'Debt Snowball Calculator'!R128) -> 0 | K130: 111
I131: 112 | J131: =SUM('Debt Snowball Calculator'!D129,'Debt Snowball Calculator'!F129,'Debt Snowball Calculator'!H129,'Debt Snowball Calculator'!J129,'Debt Snowball Calculator'!L129,'Debt Snowball Calculator'!N129,'Debt Snowball Calculator'!P129,'Debt Snowball Calculator'!R129) -> 0 | K131: 112
I132: 113 | J132: =SUM('Debt Snowball Calculator'!D130,'Debt Snowball Calculator'!F130,'Debt Snowball Calculator'!H130,'Debt Snowball Calculator'!J130,'Debt Snowball Calculator'!L130,'Debt Snowball Calculator'!N130,'Debt Snowball Calculator'!P130,'Debt Snowball Calculator'!R130) -> 0 | K132: 113
I133: 114 | J133: =SUM('Debt Snowball Calculator'!D131,'Debt Snowball Calculator'!F131,'Debt Snowball Calculator'!H131,'Debt Snowball Calculator'!J131,'Debt Snowball Calculator'!L131,'Debt Snowball Calculator'!N131,'Debt Snowball Calculator'!P131,'Debt Snowball Calculator'!R131) -> 0 | K133: 114
I134: 115 | J134: =SUM('Debt Snowball Calculator'!D132,'Debt Snowball Calculator'!F132,'Debt Snowball Calculator'!H132,'Debt Snowball Calculator'!J132,'Debt Snowball Calculator'!L132,'Debt Snowball Calculator'!N132,'Debt Snowball Calculator'!P132,'Debt Snowball Calculator'!R132) -> 0 | K134: 115
I135: 116 | J135: =SUM('Debt Snowball Calculator'!D133,'Debt Snowball Calculator'!F133,'Debt Snowball Calculator'!H133,'Debt Snowball Calculator'!J133,'Debt Snowball Calculator'!L133,'Debt Snowball Calculator'!N133,'Debt Snowball Calculator'!P133,'Debt Snowball Calculator'!R133) -> 0 | K135: 116
I136: 117 | J136: =SUM('Debt Snowball Calculator'!D134,'Debt Snowball Calculator'!F134,'Debt Snowball Calculator'!H134,'Debt Snowball Calculator'!J134,'Debt Snowball Calculator'!L134,'Debt Snowball Calculator'!N134,'Debt Snowball Calculator'!P134,'Debt Snowball Calculator'!R134) -> 0 | K136: 117
I137: 118 | J137: =SUM('Debt Snowball Calculator'!D135,'Debt Snowball Calculator'!F135,'Debt Snowball Calculator'!H135,'Debt Snowball Calculator'!J135,'Debt Snowball Calculator'!L135,'Debt Snowball Calculator'!N135,'Debt Snowball Calculator'!P135,'Debt Snowball Calculator'!R135) -> 0 | K137: 118
I138: 119 | J138: =SUM('Debt Snowball Calculator'!D136,'Debt Snowball Calculator'!F136,'Debt Snowball Calculator'!H136,'Debt Snowball Calculator'!J136,'Debt Snowball Calculator'!L136,'Debt Snowball Calculator'!N136,'Debt Snowball Calculator'!P136,'Debt Snowball Calculator'!R136) -> 0 | K138: 119
I139: 120 | J139: =SUM('Debt Snowball Calculator'!D137,'Debt Snowball Calculator'!F137,'Debt Snowball Calculator'!H137,'Debt Snowball Calculator'!J137,'Debt Snowball Calculator'!L137,'Debt Snowball Calculator'!N137,'Debt Snowball Calculator'!P137,'Debt Snowball Calculator'!R137) -> 0 | K139: 120
